[Event "Catalan Youth Championship 2024"]
[Site "Cambrils"]
[Date "2024.03.27"]
[Round "7.18"]
[White "Ano Pla, Gerard"]
[Black "Sanchez Aguilar, Arnau"]
[Result "0-1"]
[ECO "C01"]
[WhiteElo "2230"]
[BlackElo "2168"]
[Annotator "RC"]
[PlyCount "108"]
[EventDate "2024.03.13"]
[EventType "swiss"]
[EventCountry "ESP"]
[SourceTitle "playchess.com"]
[Source "ChessBase"]
[SourceQuality "1"]
[TimeControl "5400+30"]

1. c4 {[%emt 1:31:00]} e6 {[%emt 1:31:00]} 2. e4 {[%emt 0:00:30]} d5 {[%emt 0:00:30]} 3. cxd5 {[%emt 0:00:30]} exd5 {[%emt 0:00:30]} 4. exd5 {[%emt 0:00:30]} Nf6 {[%emt 0:00:30]} 5. Nc3 {[%emt 0:00:30]} Nxd5 {[%emt 0:00:30]} 6. d4 {[%emt 0:00:30]} Be7 {[%emt 0:00:30]} 7. Nf3 {[%emt 0:00:30]} O-O {[%emt 0:00:30]} 8. Bc4 {[%emt 0:00:30]} c6 {[%emt 0:00:30]} 9. O-O {[%emt 0:00:30]} Be6 {[%emt 0:00:30]} 10. Bb3 {[%emt 0:00:30]} Nd7 {[%emt 0:00:30]} 11. Re1 {[%emt 0:00:30]} N7b6 {[%emt 0:00:30]} 12. Bc2 {[%emt 0:00:30]} Nxc3 {[%emt 0:00:30]} 13. bxc3 {[%emt 0:00:30]} Bf6 {[%emt 0:00:30]} 14. Ne5 {[%emt 0:00:30]} g6 {[%emt 0:00:30]} 15. Bh6 {[%emt 0:00:30]} Bg7 {[%emt 0:00:30]} 16. Bxg7 {[%emt 0:00:30]} Kxg7 {[%emt 0:00:30]} 17. Bb3 {[%emt 0:00:30]} Re8 {[%emt 0:00:30]} 18. Qd2 {[%emt 0:00:30]} a5 {[%emt 0:00:30]} 19. Rab1 {[%emt 0:00:30]} a4 {[%emt 0:00:30]} 20. Bxe6 {[%emt 0:00:30]} Rxe6 {[%emt 0:00:30]} 21. Qf4 {[%emt 0:00:30]} Re7 22. h4 Nd5 23. Qf3 h5 24. c4 Nf6 25. Qf4 Qc7 26. g3 Rae8 27. Re3 Ng4 28. Nxg4 Qxf4 29. gxf4 hxg4 30. Re5 f6 31. Rxe7+ Rxe7 32. Rb4 Rd7 33. d5 cxd5 34. cxd5 Rxd5 35. Rxb7+ Kh6 36. Rb4 a3 37. Rb3 Rd4 38. Rxa3 Rxf4 39. Kg2 Kh5 40. Kg3 Rc4 41. Rb3 f5 42. a3 f4+ 43. Kg2 Kxh4 44. Rb2 f3+ 45. Kh2 Re4 46. Rb8 Re1 47. a4 Ra1 48. Rh8+ Kg5 49. Ra8 Rf1 50. Rb8 Rxf2+ 51. Kg1 Ra2 52. Rb4 Kh4 53. Kh1 Kh3 54. Rb1 Rh2+ 0-1

[Event "Catalan Youth Championship 2024"]
[Site "Cambrils"]
[Date "2024.03.27"]
[Round "7.19"]
[White "Garcia Caro, Juan Alber"]
[Black "Serrahima Susany, Ramon"]
[Result "1/2-1/2"]
[ECO "B48"]
[WhiteElo "2128"]
[BlackElo "2029"]
[Annotator "RC"]
[PlyCount "51"]
[EventDate "2024.03.13"]
[EventType "swiss"]
[EventCountry "ESP"]
[SourceTitle "playchess.com"]
[Source "ChessBase"]
[SourceQuality "1"]
[TimeControl "5400+30"]

1. e4 {[%emt 0:05:47]} c5 {[%emt 0:00:05]} 2. Nf3 {[%emt 0:00:10]} e6 {[%emt 0:00:04]} 3. Nc3 {[%emt 0:00:06]} Nc6 {[%emt 0:00:07]} 4. d4 {[%emt 0:00:30]} cxd4 {[%emt 0:00:10]} 5. Nxd4 {[%emt 0:00:05]} Qc7 {[%emt 0:00:15]} 6. Be3 {[%emt 0:00:23]} Nf6 {[%emt 1:32:49]} 7. Qf3 {[%emt 1:26:59]} Nxd4 {[%emt 0:00:00]} 8. Bxd4 {[%emt 0:00:00]} e5 {[%emt 0:01:00]} 9. Nb5 {[%emt 0:00:00]} Qb8 {[%emt 0:00:00]} 10. Be3 {[%emt 0:00:00]} a6 {[%emt 0:00:00]} 11. Nc3 {[%emt 0:02:00]} d6 {[%emt 0:01:30]} 12. Bc4 {[%emt 0:00:30]} Bg4 {[%emt 0:00:00]} 13. Qg3 {[%emt 0:00:00]} Qc8 {[%emt 0:01:00]} 14. Bg5 {[%emt 0:01:00]} Qxc4 {[%emt 0:00:00]} 15. Bxf6 {[%emt 0:00:00]} Be6 {[%emt 0:01:00]} 16. Bg5 {[%emt 0:00:00]} b5 {[%emt 0:00:00]} 17. b3 {[%emt 0:01:30]} Qc6 {[%emt 0:01:00]} 18. a3 {[%emt 0:00:00]} Rc8 {[%emt 0:00:00]} 19. Bd2 {[%emt 0:01:00]} a5 {[%emt 0:01:00]} 20. O-O {[%emt 0:00:00]} b4 {[%emt 0:00:00]} 21. axb4 {[%emt 0:00:00]} axb4 {[%emt 0:00:00]} 22. Nd5 {[%emt 0:00:00]} Qxc2 {[%emt 0:00:00]} 23. Qe3 {[%emt 0:02:00]} Qc5 {[%emt 0:02:00]} 24. Rfc1 {[%emt 0:00:30]} Qxe3 {[%emt 0:00:00]} 25. Rxc8+ {[%emt 0:00:00]} Bxc8 {[%emt 0:01:00]} 26. Bxe3 {[%emt 0:00:00]} 1/2-1/2

[Event "Catalan Youth Championship 2024"]
[Site "Cambrils"]
[Date "2024.03.27"]
[Round "7.20"]
[White "Porta Isant, Lluis"]
[Black "Chiva Perez, Ferran"]
[Result "0-1"]
[ECO "C11"]
[WhiteElo "2115"]
[BlackElo "2025"]
[Annotator "RC"]
[PlyCount "44"]
[EventDate "2024.03.13"]
[EventType "swiss"]
[EventCountry "ESP"]
[SourceTitle "playchess.com"]
[Source "ChessBase"]
[SourceQuality "1"]
[TimeControl "5400+30"]

1. e4 {[%emt 0:00:37]} e6 {[%emt 0:00:02]} 2. d4 {[%emt 0:00:14]} d5 {[%emt 0:00:04]} 3. Nc3 {[%emt 0:00:36]} Nf6 {[%emt 0:00:04]} 4. e5 {[%emt 0:00:12]} Nfd7 {[%emt 0:00:01]} 5. f4 {[%emt 0:00:08]} c5 {[%emt 0:00:05]} 6. Nf3 {[%emt 0:00:03]} Nc6 {[%emt 0:00:05]} 7. Be3 {[%emt 0:00:03]} Be7 {[%emt 0:00:06]} 8. Qd2 {[%emt 0:01:42]} O-O {[%emt 0:00:13]} 9. O-O-O {[%emt 0:06:01]} c4 {[%emt 0:00:28]} 10. f5 {[%emt 0:00:44]} b5 {[%emt 0:02:59]} 11. f6 {[%emt 0:02:50]} gxf6 {[%emt 0:16:04]} 12. Bh6 {[%emt 0:01:26]} b4 {[%emt 0:21:09]} 13. exf6 {[%emt 0:11:48]} Bxf6 {[%emt 0:01:40]} 14. Qf4 {[%emt 0:04:12]} bxc3 {[%emt 0:14:13]} 15. Bxc4 {[%emt 0:03:35]} cxb2+ {[%emt 0:10:31]} 16. Kb1 {[%emt 0:00:47]} dxc4 {[%emt 0:02:21]} 17. d5 {[%emt 0:00:33]} Nb4 {[%emt 0:07:15]} 18. c3 {[%emt 0:03:39]} Nxd5 {[%emt 0:04:34]} 19. Rxd5 {[%emt 0:00:50]} exd5 {[%emt 0:00:02]} 20. Rf1 {[%emt 0:01:38]} Kh8 {[%emt 0:09:34]} 21. Qd6 {[%emt 0:01:12]} Qe7 {[%emt 0:03:09]} 22. Qxd5 {[%emt 0:01:00]} Nb6 {[%emt 0:00:30]} 0-1

[Event "Catalan Youth Championship 2024"]
[Site "Cambrils"]
[Date "2024.03.27"]
[Round "7.21"]
[White "Serrano Batova, Vicent"]
[Black "Rocamora Martorell, Ferran"]
[Result "1-0"]
[ECO "E61"]
[WhiteElo "2104"]
[BlackElo "2118"]
[Annotator "RC"]
[PlyCount "63"]
[EventDate "2024.03.13"]
[EventType "swiss"]
[EventCountry "ESP"]
[SourceTitle "playchess.com"]
[Source "ChessBase"]
[SourceQuality "1"]
[TimeControl "5400+30"]

1. d4 {[%emt 0:00:02]} Nf6 {[%emt 0:03:27]} 2. Nf3 {[%emt 0:00:01]} g6 {[%emt 0:00:31]} 3. c4 {[%emt 0:00:02]} Bg7 {[%emt 0:00:08]} 4. Nc3 {[%emt 0:00:02]} O-O {[%emt 1:28:24]} 5. Bg5 {[%emt 0:00:03]} c5 {[%emt 0:00:00]} 6. d5 {[%emt 0:02:43]} d6 {[%emt 0:00:00]} 7. e3 {[%emt 0:09:51]} e6 {[%emt 0:00:00]} 8. Bd3 {[%emt 0:07:13]} exd5 {[%emt 0:00:00]} 9. cxd5 {[%emt 0:01:20]} Bg4 {[%emt 0:00:00]} 10. Qc2 {[%emt 0:06:34]} Nbd7 {[%emt 0:00:00]} 11. Nd2 {[%emt 0:01:07]} Ne5 {[%emt 0:00:00]} 12. Bf1 {[%emt 0:02:19]} Re8 {[%emt 0:00:00]} 13. h3 {[%emt 0:07:40]} Bf5 {[%emt 0:00:00]} 14. e4 {[%emt 0:00:54]} h6 {[%emt 0:00:00]} 15. Be3 {[%emt 0:05:30]} Bc8 {[%emt 0:00:00]} 16. f4 {[%emt 0:04:13]} Ned7 {[%emt 0:00:00]} 17. Bd3 {[%emt 0:00:02]} a6 {[%emt 0:00:00]} 18. a4 {[%emt 0:00:08]} Nb6 {[%emt 0:00:00]} 19. Kf2 {[%emt 0:08:28]} Nh5 {[%emt 0:00:00]} 20. Rhf1 {[%emt 0:03:32]} f5 {[%emt 0:00:00]} 21. Rae1 {[%emt 0:02:09]} fxe4 {[%emt 0:00:00]} 22. Bxe4 {[%emt 0:04:03]} Qh4+ {[%emt 0:00:00]} 23. Kg1 {[%emt 0:00:17]} Ng3 {[%emt 0:00:00]} 24. Bf2 {[%emt 0:09:10]} Bd4 {[%emt 0:02:26]} 25. Nf3 {[%emt 0:02:33]} Qxf4 {[%emt 0:00:23]} 26. Nxd4 {[%emt 0:02:08]} cxd4 {[%emt 0:01:47]} 27. Bxd4 {[%emt 0:00:29]} Nxf1 {[%emt 0:01:38]} 28. Rxf1 {[%emt 0:00:22]} Qg5 {[%emt 0:01:30]} 29. Bxg6 {[%emt 0:03:39]} Re7 {[%emt 0:00:13]} 30. Bf6 {[%emt 0:08:45]} Qe3+ {[%emt 0:00:37]} 31. Kh1 {[%emt 0:00:01]} Rc7 {[%emt 0:00:52]} 32. Bh7+ {[%emt 0:00:24]} 1-0

[Event "Catalan Youth Championship 2024"]
[Site "Cambrils"]
[Date "2024.03.27"]
[Round "7.22"]
[White "Jurado Coderch, Heribert"]
[Black "Martin Barcelo, Carles"]
[Result "0-1"]
[ECO "B13"]
[WhiteElo "1960"]
[BlackElo "2234"]
[Annotator "RC"]
[PlyCount "82"]
[EventDate "2024.03.13"]
[EventType "swiss"]
[EventCountry "ESP"]
[SourceTitle "playchess.com"]
[Source "ChessBase"]
[SourceQuality "1"]
[TimeControl "5400+30"]

1. e4 {[%emt 0:00:39]} c6 {[%emt 0:02:46]} 2. d4 {[%emt 0:00:10]} d5 {[%emt 0:00:07]} 3. exd5 {[%emt 0:00:08]} cxd5 {[%emt 0:00:07]} 4. Bd3 {[%emt 0:00:09]} Nf6 {[%emt 0:02:20]} 5. h3 {[%emt 0:00:20]} Nc6 {[%emt 0:05:45]} 6. c3 {[%emt 0:00:16]} g6 {[%emt 0:01:14]} 7. Nf3 {[%emt 0:00:26]} Bf5 {[%emt 0:00:11]} 8. Be2 {[%emt 0:00:09]} Qc7 {[%emt 0:01:09]} 9. O-O {[%emt 0:00:16]} Bg7 {[%emt 0:00:03]} 10. Be3 {[%emt 0:02:10]} O-O {[%emt 0:01:49]} 11. Nbd2 {[%emt 0:00:44]} Na5 {[%emt 0:10:36]} 12. Qc1 {[%emt 0:04:30]} Rac8 {[%emt 0:03:32]} 13. Re1 {[%emt 0:01:33]} a6 {[%emt 0:09:48]} 14. Ne5 {[%emt 0:04:47]} Nd7 {[%emt 0:02:41]} 15. Bf4 {[%emt 0:15:28]} Nxe5 {[%emt 0:05:41]} 16. Bxe5 {[%emt 0:01:01]} Bxe5 {[%emt 0:01:06]} 17. dxe5 {[%emt 0:00:10]} Qxe5 {[%emt 0:00:16]} 18. Bxa6 {[%emt 0:03:20]} Qf6 {[%emt 0:06:20]} 19. Bb5 {[%emt 0:02:53]} d4 {[%emt 0:01:54]} 20. c4 {[%emt 0:01:14]} Nc6 {[%emt 0:00:37]} 21. Ne4 {[%emt 0:08:06]} Bxe4 {[%emt 0:06:02]} 22. Rxe4 {[%emt 0:00:12]} Rfd8 {[%emt 0:02:37]} 23. Qd2 {[%emt 0:03:55]} d3 {[%emt 0:07:35]} 24. Bxc6 {[%emt 0:01:17]} Rxc6 {[%emt 0:00:50]} 25. Rae1 {[%emt 0:02:14]} e6 {[%emt 0:00:45]} 26. a4 {[%emt 0:05:47]} Rd4 {[%emt 0:05:00]} 27. b3 {[%emt 0:05:56]} Rb6 {[%emt 0:08:04]} 28. b4 {[%emt 0:07:31]} Rbd6 {[%emt 0:00:11]} 29. c5 {[%emt 0:04:02]} R6d5 {[%emt 0:01:27]} 30. a5 {[%emt 0:00:45]} Qd8 {[%emt 0:02:48]} 31. h4 {[%emt 0:04:48]} h5 {[%emt 0:00:45]} 32. g3 {[%emt 0:01:37]} Qd7 {[%emt 0:00:51]} 33. Rxd4 {[%emt 0:04:44]} Rxd4 {[%emt 0:00:06]} 34. Rb1 {[%emt 0:00:33]} Qb5 {[%emt 0:06:01]} 35. Rb2 {[%emt 0:05:14]} e5 {[%emt 0:03:50]} 36. Kg2 {[%emt 0:03:14]} Qc4 {[%emt 0:02:13]} 37. f3 {[%emt 0:02:29]} e4 {[%emt 0:01:14]} 38. b5 {[%emt 0:03:32]} exf3+ {[%emt 0:00:33]} 39. Kxf3 {[%emt 0:00:14]} Qd5+ {[%emt 0:00:26]} 40. Kf2 {[%emt 0:00:33]} Qxc5 {[%emt 0:00:35]} 41. Qe3 {[%emt 0:01:56]} d2 {[%emt 0:00:30]} 0-1

[Event "Catalan Youth Championship 2024"]
[Site "Cambrils"]
[Date "2024.03.27"]
[Round "7.23"]
[White "Pujol Biosca, Joan"]
[Black "Gomez Navais, Marcal"]
[Result "0-1"]
[ECO "B99"]
[WhiteElo "1979"]
[BlackElo "2086"]
[Annotator "RC"]
[PlyCount "184"]
[EventDate "2024.03.13"]
[EventType "swiss"]
[EventCountry "ESP"]
[SourceTitle "playchess.com"]
[Source "ChessBase"]
[SourceQuality "1"]
[TimeControl "5400+30"]

1. e4 {[%emt 0:00:06]} c5 {[%emt 0:00:13]} 2. Nf3 {[%emt 0:00:21]} d6 {[%emt 0:00:16]} 3. d4 {[%emt 0:00:19]} cxd4 {[%emt 0:00:06]} 4. Nxd4 {[%emt 0:00:11]} Nf6 {[%emt 0:00:03]} 5. Nc3 {[%emt 0:00:16]} a6 {[%emt 0:00:03]} 6. Bg5 {[%emt 0:00:13]} e6 {[%emt 1:32:49]} 7. f4 {[%emt 0:00:09]} Be7 {[%emt 0:00:00]} 8. Qf3 {[%emt 0:00:11]} Qc7 {[%emt 0:01:00]} 9. O-O-O {[%emt 1:33:14]} Nbd7 {[%emt 0:00:30]} 10. g4 {[%emt 0:00:00]} h6 {[%emt 0:00:00]} 11. Bxf6 {[%emt 0:00:00]} Bxf6 {[%emt 0:00:00]} 12. Bg2 {[%emt 0:01:30]} Nb6 {[%emt 0:01:30]} 13. Kb1 {[%emt 0:00:30]} Bd7 {[%emt 0:00:30]} 14. Rhe1 {[%emt 0:00:30]} Rc8 {[%emt 0:00:30]} 15. e5 {[%emt 0:00:00]} dxe5 {[%emt 0:00:00]} 16. fxe5 {[%emt 0:01:00]} Bxe5 {[%emt 0:00:00]} 17. Qxb7 {[%emt 0:00:30]} Bxh2 {[%emt 0:01:30]} 18. Qxa6 {[%emt 0:00:30]} O-O {[%emt 0:00:30]} 19. Qb7 {[%emt 0:00:30]} Qg3 {[%emt 0:00:30]} 20. Ne4 {[%emt 0:00:30]} Qb8 {[%emt 0:00:00]} 21. Qxb8 {[%emt 0:00:30]} Rxb8 {[%emt 0:00:00]} 22. g5 {[%emt 0:00:30]} hxg5 {[%emt 0:00:00]} 23. Nxg5 {[%emt 0:00:30]} Bg3 {[%emt 0:02:00]} 24. Rh1 {[%emt 0:00:30]} Be5 {[%emt 0:00:30]} 25. Nb3 {[%emt 0:00:00]} g6 {[%emt 0:00:30]} 26. Nf3 {[%emt 0:01:00]} Bg7 {[%emt 0:00:00]} 27. c3 {[%emt 0:00:30]} Bc6 {[%emt 0:01:00]} 28. Rhg1 {[%emt 0:00:30]} Nc4 {[%emt 0:00:30]} 29. Nh4 {[%emt 0:00:00]} Ba4 {[%emt 0:00:30]} 30. Bf1 {[%emt 0:00:15]} Ne3 {[%emt 0:00:00]} 31. Rd3 {[%emt 0:01:15]} Nxf1 {[%emt 0:00:00]} 32. Rxf1 {[%emt 0:00:00]} Bb5 {[%emt 0:00:00]} 33. Rdf3 {[%emt 0:01:00]} Bxf1 {[%emt 0:00:00]} 34. Rxf1 {[%emt 0:00:00]} Rfd8 {[%emt 0:00:00]} 35. Nf3 {[%emt 0:00:00]} Rd5 36. Kc2 {[%emt 0:01:30]} Rdb5 {[%emt 0:03:30]} 37. Nfd2 {[%emt 0:00:30]} g5 {[%emt 0:00:30]} 38. a4 {[%emt 0:00:00]} Rd5 39. a5 {[%emt 0:01:00]} g4 {[%emt 0:01:00]} 40. a6 {[%emt 0:00:30]} Ra8 {[%emt 0:00:30]} 41. Ra1 {[%emt 0:00:00]} Bf8 42. Nc4 {[%emt 0:01:00]} Rb5 {[%emt 0:01:00]} 43. Nd4 {[%emt 0:00:30]} Rc5 {[%emt 0:00:30]} 44. Kd3 {[%emt 0:00:30]} g3 {[%emt 0:00:30]} 45. b4 {[%emt 0:00:30]} Rg5 {[%emt 0:00:00]} 46. Nb6 {[%emt 0:00:30]} Ra7 {[%emt 0:01:00]} 47. Nc8 {[%emt 0:00:00]} Rc7 {[%emt 0:00:30]} 48. Nb6 {[%emt 0:01:00]} g2 {[%emt 0:00:00]} 49. Nf3 {[%emt 0:00:30]} Rg3 {[%emt 0:01:00]} 50. Ke2 {[%emt 0:00:00]} Ra7 {[%emt 0:00:30]} 51. Kf2 {[%emt 0:01:00]} Rg6 {[%emt 0:00:30]} 52. Nc8 {[%emt 0:00:00]} Rc7 {[%emt 0:00:30]} 53. a7 {[%emt 0:00:18]} Rxc8 {[%emt 0:00:30]} 54. a8=Q {[%emt 0:00:02]} Rxa8 {[%emt 0:00:00]} 55. Rxa8 {[%emt 0:01:40]} e5 {[%emt 0:01:00]} 56. Kg1 {[%emt 0:00:30]} e4 {[%emt 0:00:00]} 57. Nh4 {[%emt 0:00:00]} Rg3 {[%emt 0:01:00]} 58. Nxg2 {[%emt 0:00:00]} Rxc3 {[%emt 0:00:30]} 59. Re8 {[%emt 0:00:00]} f5 {[%emt 0:00:30]} 60. Nh4 {[%emt 0:02:00]} Rg3+ {[%emt 0:00:30]} 61. Kf2 {[%emt 0:00:30]} Rg4 {[%emt 0:00:00]} 62. Nxf5 {[%emt 0:00:30]} Rf4+ {[%emt 0:00:00]} 63. Ke3 {[%emt 0:00:00]} Rxf5 {[%emt 0:00:00]} 64. Rxe4 {[%emt 0:00:00]} Rb5 {[%emt 0:02:00]} 65. Kd3 {[%emt 0:00:00]} Bxb4 {[%emt 0:00:00]} 66. Kc4 {[%emt 0:00:18]} Rb8 {[%emt 0:01:00]} 67. Kd5 {[%emt 0:00:36]} Kf7 {[%emt 0:00:00]} 68. Kc4 {[%emt 0:00:14]} Be7 {[%emt 0:01:00]} 69. Kd3 {[%emt 0:00:27]} Rb5 {[%emt 0:00:30]} 70. Ra4 {[%emt 0:02:25]} Bd6 {[%emt 0:00:30]} 71. Ke3 {[%emt 0:00:30]} Ke6 {[%emt 0:00:00]} 72. Kd3 {[%emt 0:00:00]} Kd5 {[%emt 0:00:00]} 73. Rd4+ {[%emt 0:00:00]} Ke5 {[%emt 0:00:00]} 74. Re4+ {[%emt 0:00:00]} Kf5 {[%emt 0:00:00]} 75. Ra4 {[%emt 0:02:00]} Be5 {[%emt 0:02:30]} 76. Kc4 {[%emt 0:00:00]} Rb1 {[%emt 0:00:30]} 77. Kd3 {[%emt 0:00:00]} Rc1 {[%emt 0:00:00]} 78. Kd2 {[%emt 0:00:00]} Rc3 {[%emt 0:00:00]} 79. Ra5 {[%emt 0:00:00]} Rh3 {[%emt 0:01:30]} 80. Rb5 {[%emt 0:00:36]} Ke4 {[%emt 0:00:30]} 81. Kc2 {[%emt 0:02:24]} Kd4 {[%emt 0:00:00]} 82. Rb4+ {[%emt 0:00:30]} Kd5 {[%emt 0:01:00]} 83. Rb5+ {[%emt 0:00:00]} Ke4 {[%emt 0:00:30]} 84. Rb4+ {[%emt 0:00:00]} Bd4 {[%emt 0:00:00]} 85. Rb7 {[%emt 0:01:30]} Rh2+ {[%emt 0:01:00]} 86. Kb1 {[%emt 0:00:00]} Kd3 {[%emt 0:00:00]} 87. Rc7 {[%emt 0:00:22]} Rb2+ {[%emt 0:00:00]} 88. Kc1 {[%emt 0:01:08]} Ra2 {[%emt 0:01:30]} 89. Rb7 {[%emt 0:00:30]} Ra1+ {[%emt 0:00:00]} 90. Rb1 {[%emt 0:00:30]} Ra7 {[%emt 0:01:00]} 91. Rb8 {[%emt 0:00:00]} Rh7 {[%emt 0:00:30]} 92. Kb1 {[%emt 0:00:29]} Rh1+ {[%emt 0:00:00]} 0-1

[Event "Catalan Youth Championship 2024"]
[Site "Cambrils"]
[Date "2024.03.27"]
[Round "7.24"]
[White "Porta Isant, Lluis"]
[Black "Chiva Perez, Ferran"]
[Result "*"]
[ECO "B33"]
[WhiteElo "2115"]
[BlackElo "2025"]
[Annotator "RC"]
[PlyCount "24"]
[EventDate "2024.03.13"]
[EventType "swiss"]
[EventCountry "ESP"]
[SourceTitle "playchess.com"]
[Source "ChessBase"]
[SourceQuality "1"]
[TimeControl "5400+30"]

1. e4 {[%emt 0:00:03]} c5 {[%emt 0:00:15]} 2. Nf3 {[%emt 0:00:15]} Nc6 {[%emt 0:00:17]} 3. d4 {[%emt 0:00:10]} cxd4 {[%emt 0:00:07]} 4. Nxd4 {[%emt 0:00:02]} Nf6 {[%emt 0:00:20]} 5. Nc3 {[%emt 0:00:06]} e5 {[%emt 0:00:14]} 6. Ndb5 {[%emt 0:00:06]} d6 {[%emt 0:00:10]} 7. Bg5 {[%emt 0:00:17]} a6 {[%emt 0:00:14]} 8. Na3 {[%emt 0:00:05]} b5 {[%emt 0:00:03]} 9. Nd5 {[%emt 0:00:05]} Be7 {[%emt 0:00:03]} 10. Bxf6 {[%emt 0:00:06]} Bxf6 {[%emt 0:00:07]} 11. c3 {[%emt 0:00:05]} Bg5 {[%emt 0:01:13]} 12. Nc2 {[%emt 0:00:21]} Be6 {[%emt 0:01:46]} *

[Event "Catalan Youth Championship 2024"]
[Site "Cambrils"]
[Date "2024.03.27"]
[Round "7.24"]
[White "Vara Soler, Luis"]
[Black "Navajas Alvarez, Josep"]
[Result "0-1"]
[ECO "B33"]
[WhiteElo "1889"]
[BlackElo "1989"]
[Annotator "RC"]
[PlyCount "108"]
[EventDate "2024.03.13"]
[EventType "swiss"]
[EventCountry "ESP"]
[SourceTitle "playchess.com"]
[Source "ChessBase"]
[SourceQuality "1"]
[TimeControl "5400+30"]

1. e4 {[%emt 0:00:03]} c5 {[%emt 0:00:15]} 2. Nf3 {[%emt 0:00:15]} Nc6 {[%emt 0:00:17]} 3. d4 {[%emt 0:00:10]} cxd4 {[%emt 0:00:07]} 4. Nxd4 {[%emt 0:00:02]} Nf6 {[%emt 0:00:20]} 5. Nc3 {[%emt 0:00:06]} e5 {[%emt 0:00:14]} 6. Ndb5 {[%emt 0:00:06]} d6 {[%emt 0:00:10]} 7. Bg5 {[%emt 0:00:17]} a6 {[%emt 0:00:14]} 8. Na3 {[%emt 0:00:05]} b5 {[%emt 0:00:03]} 9. Nd5 {[%emt 0:00:05]} Be7 {[%emt 0:00:03]} 10. Bxf6 {[%emt 0:00:06]} Bxf6 {[%emt 0:00:07]} 11. c3 {[%emt 0:00:05]} Bg5 {[%emt 0:01:13]} 12. Nc2 {[%emt 0:00:21]} Be6 {[%emt 0:01:46]} 13. Nce3 {[%emt 0:02:17]} O-O {[%emt 0:01:43]} 14. a4 {[%emt 0:21:04]} bxa4 {[%emt 0:08:46]} 15. Rxa4 {[%emt 0:00:46]} a5 {[%emt 0:01:00]} 16. Bc4 {[%emt 0:05:19]} Rb8 {[%emt 0:11:12]} 17. b3 {[%emt 0:00:43]} g6 {[%emt 0:13:02]} 18. O-O {[%emt 0:27:25]} Kh8 {[%emt 0:03:37]} 19. g3 {[%emt 0:07:46]} f5 {[%emt 0:12:01]} 20. f4 {[%emt 0:02:46]} Bh6 {[%emt 0:04:47]} 21. exf5 {[%emt 0:02:31]} gxf5 {[%emt 0:07:20]} 22. Qh5 {[%emt 0:06:58]} Bg7 {[%emt 0:01:27]} 23. Rd1 {[%emt 0:08:27]} e4 {[%emt 0:04:23]} 24. Ra2 {[%emt 0:05:16]} Qd7 {[%emt 0:03:19]} 25. Rad2 {[%emt 0:01:18]} Qa7 {[%emt 0:00:12]} 26. Kg2 {[%emt 0:00:42]} Rbd8 {[%emt 0:06:31]} 27. Qe2 {[%emt 0:00:42]} Bg8 {[%emt 0:02:54]} 28. Rc2 {[%emt 0:02:08]} Nb8 {[%emt 0:02:42]} 29. Qh5 {[%emt 0:00:49]} Be6 {[%emt 0:01:12]} 30. Ra1 {[%emt 0:02:25]} Nc6 {[%emt 0:05:24]} 31. Rd1 {[%emt 0:01:14]} Nb8 {[%emt 0:03:39]} 32. Ra2 {[%emt 0:00:16]} Bxc3 {[%emt 0:04:32]} 33. Nxc3 {[%emt 0:00:31]} Qxe3 {[%emt 0:00:07]} 34. Bxe6 {[%emt 0:00:09]} Qxc3 {[%emt 0:00:14]} 35. Qe2 {[%emt 0:03:07]} Rf6 {[%emt 0:01:40]} 36. Bc4 {[%emt 0:00:31]} Nc6 {[%emt 0:00:50]} 37. Rc2 {[%emt 0:00:05]} Qb4 {[%emt 0:00:23]} 38. Qe3 {[%emt 0:00:38]} Kg7 {[%emt 0:01:06]} 39. Rd5 {[%emt 0:00:06]} Qb7 {[%emt 0:00:27]} 40. Qc3 {[%emt 0:00:32]} Kg6 {[%emt 0:00:31]} 41. h4 {[%emt 0:01:40]} h5 {[%emt 0:00:31]} 42. Rb5 {[%emt 0:00:21]} Qa7 {[%emt 0:00:26]} 43. Bf7+ {[%emt 0:00:45]} Qxf7 {[%emt 0:00:27]} 44. Qxc6 {[%emt 0:00:06]} d5 {[%emt 0:00:32]} 45. Qc5 {[%emt 0:01:01]} d4 {[%emt 0:00:21]} 46. Rd2 {[%emt 0:00:36]} d3 {[%emt 0:00:26]} 47. Rxa5 {[%emt 0:00:07]} Qxb3 {[%emt 0:00:10]} 48. Ra7 {[%emt 0:01:42]} Qe6 {[%emt 0:01:03]} 49. Qc7 {[%emt 0:00:00]} Qf7 {[%emt 0:00:24]} 50. Qc5 {[%emt 0:00:00]} Rd7 {[%emt 0:00:14]} 51. Rxd7 {[%emt 0:00:45]} Qxd7 {[%emt 0:00:05]} 52. Qc4 {[%emt 0:00:12]} Qe6 {[%emt 0:00:22]} 53. Qc7 {[%emt 0:00:12]} e3 {[%emt 0:00:16]} 54. Rxd3 {[%emt 0:00:15]} Qe4+ {[%emt 0:00:16]} 0-1

[Event "Catalan Youth Championship 2024"]
[Site "Cambrils"]
[Date "2024.03.27"]
[Round "8.1"]
[White "Caballero Mogilnikov, Liam"]
[Black "Garcia Corpas, Nicolas"]
[Result "1/2-1/2"]
[ECO "B22"]
[WhiteElo "1659"]
[BlackElo "1679"]
[Annotator "NA RC"]
[PlyCount "52"]
[EventDate "2024.03.13"]
[EventType "swiss"]
[EventCountry "ESP"]
[SourceTitle "playchess.com"]
[Source "ChessBase"]
[SourceQuality "1"]
[TimeControl "5400+30"]

1. e4 {[%emt 0:00:22]} c5 {[%emt 0:00:25]} 2. d4 {[%emt 0:00:38]} cxd4 {[%emt 0:00:11]} 3. c3 {[%emt 0:00:27]} Nf6 {[%emt 0:00:11]} 4. e5 {[%emt 0:00:50]} Nd5 {[%emt 0:00:28]} 5. Qxd4 {[%emt 0:00:36]} Nb6 {[%emt 0:04:09]} 6. Nf3 {[%emt 0:02:16]} Nc6 {[%emt 0:00:43]} 7. Qe4 {[%emt 0:01:14]} g6 {[%emt 0:04:10]} 8. Bd3 {[%emt 0:01:41]} Bg7 {[%emt 0:01:54]} 9. O-O {[%emt 0:01:48]} O-O {[%emt 0:00:25]} 10. Re1 {[%emt 0:03:01]} d6 {[%emt 0:05:19]} 11. exd6 {[%emt 0:05:38]} Qxd6 {[%emt 0:00:31]} 12. Qe2 {[%emt 0:08:12]} Bg4 {[%emt 0:05:52]} 13. Nbd2 {[%emt 0:08:52]} Rad8 {[%emt 0:16:06]} 14. Bc2 {[%emt 0:01:33]} Nd5 {[%emt 0:57:06]} 15. Nb3 {[%emt 0:10:35]} Qf6 {[%emt 0:00:00]} 16. Be4 {[%emt 0:03:57]} Ne5 {[%emt 0:00:00]} 17. Bxd5 {[%emt 0:01:33]} Rxd5 {[%emt 0:00:00]} 18. Nbd4 {[%emt 0:02:03]} Nxf3+ {[%emt 0:00:00]} 19. Nxf3 {[%emt 0:00:54]} Bxf3 {[%emt 0:00:00]} 20. Qxf3 {[%emt 0:00:38]} Qxf3 {[%emt 0:00:00]} 21. gxf3 {[%emt 0:00:17]} e6 {[%emt 0:00:00]} 22. Be3 {[%emt 0:00:32]} b6 {[%emt 0:00:00]} 23. a4 {[%emt 0:01:37]} Ra5 {[%emt 0:00:00]} 24. Red1 {[%emt 0:01:38]} Bf6 {[%emt 0:00:00]} 25. Rd7 {[%emt 0:42:08]} Rd8 {[%emt 0:05:30]} 26. Rxd8+ Bxd8 1/2-1/2